bitfinex/quotes_BTCUSD_20250222
["timestamp","ask_amount","ask_price","bid_price","bid_amount"]
[1740185660221,0.0008508,96346.0,96345.0,0.28709]
[1740185660463,0.0008508,96346.0,96345.0,0.39749569]
[1740185662045,0.0008508,96346.0,96345.0,0.40449569]
[1740185662543,0.0008508,96346.0,96345.0,0.41149569]
[1740185664231,0.0008508,96346.0,96345.0,0.73022803]
[1740185668431,0.0008508,96346.0,96345.0,0.75152107]
[1740185686371,0.0008508,96346.0,96345.0,0.59583107]
[1740185686577,0.0008508,96346.0,96345.0,0.75152107]
[1740185689067,0.1565388,96346.0,96345.0,0.33273234]
[1740185689273,0.1565388,96346.0,96345.0,0.34049234]
[1740185689512,0.163471,96346.0,96345.0,0.34049234]
[1740185690139,0.163471,96346.0,96345.0,0.33349234]
[1740185690698,0.163471,96346.0,96345.0,0.33849234]
[1740185691443,0.163471,96346.0,96345.0,0.33149234]
[1740185691851,0.163471,96346.0,96345.0,0.33849234]
[1740185692520,0.007783,96346.0,96345.0,0.33849234]
[1740185692719,0.007783,96346.0,96345.0,0.41479234]
[1740185692921,0.1565388,96346.0,96345.0,0.41479234]
[1740185693125,0.007783,96346.0,96345.0,0.41479234]
[1740185693264,0.007783,96346.0,96345.0,0.51743803]
[1740185693868,0.0008508,96346.0,96345.0,0.19870569]
[1740185694067,0.00776377,96346.0,96345.0,0.19870569]
[1740185694626,0.0008508,96346.0,96345.0,0.19870569]
[1740185694781,0.00776904,96346.0,96345.0,0.19870569]
[1740185694983,0.00776904,96346.0,96345.0,0.35439569]
[1740185695171,0.0008508,96346.0,96345.0,0.35439569]
[1740185699888,0.0008508,96346.0,96345.0,0.67312803]
[1740185700517,0.0008508,96346.0,96345.0,0.35439569]
[1740185700715,0.0008508,96346.0,96345.0,0.41453654]
[1740185700917,0.0008508,96346.0,96345.0,0.42555289]
[1740185701124,0.0008508,96346.0,96345.0,0.45785738]
[1740185701305,0.0008508,96346.0,96345.0,0.45285738]
[1740185701473,0.0008508,96346.0,96345.0,0.41355289]
[1740185701906,0.0008508,96346.0,96345.0,0.42055289]
[1740185702107,0.0008508,96346.0,96345.0,0.4238019]
[1740185702308,0.0008508,96346.0,96345.0,0.41278555]
[1740185703147,0.0008508,96346.0,96345.0,0.41978555]
[1740185703553,0.0008508,96346.0,96345.0,0.4052447]
[1740185703850,0.0008508,96346.0,96345.0,0.3974847]
[1740185704188,0.0008508,96346.0,96345.0,0.40199569]
[1740185708707,0.1565388,96346.0,96345.0,0.20070569]
[1740185709138,0.16347902,96346.0,96345.0,0.12440569]
[1740185709361,0.00779102,96346.0,96345.0,0.12440569]
[1740185710063,0.0008508,96346.0,96345.0,0.27309569]
[1740185710199,0.0008508,96346.0,96345.0,0.27209569]
[1740185710397,0.0008508,96346.0,96345.0,0.27909569]
[1740185711445,0.00779102,96346.0,96345.0,0.11564569]
[1740185711610,0.00779102,96346.0,96345.0,0.27909569]
[1740185711819,0.00779102,96346.0,96345.0,0.12340569]
[1740185712013,0.0008508,96346.0,96345.0,0.27909569]
[1740185712333,0.00779102,96346.0,96345.0,0.27909569]
[1740185712538,0.0008508,96346.0,96345.0,0.27909569]
[1740185713850,0.00779102,96346.0,96345.0,0.27909569]
[1740185714083,0.00779102,96346.0,96345.0,0.12340569]
[1740185715034,0.00779102,96346.0,96345.0,0.27909569]
[1740185715518,0.00779102,96346.0,96345.0,0.12340569]
[1740185716217,0.0008508,96346.0,96345.0,0.12340569]
[1740185716457,0.0008508,96346.0,96345.0,0.27909569]
[1740185716657,0.0008508,96346.0,96345.0,0.12340569]
[1740185716890,0.00778948,96346.0,96345.0,0.12340569]
[1740185717126,0.0008508,96346.0,96345.0,0.27909569]
[1740185717344,0.00778948,96346.0,96345.0,0.12340569]
[1740185717583,0.0008508,96346.0,96345.0,0.27909569]
[1740185717851,0.00778948,96346.0,96345.0,0.27909569]
[1740185718101,0.0008508,96346.0,96345.0,0.27909569]
[1740185719102,0.00778948,96346.0,96345.0,0.12340569]
[1740185719350,0.0008508,96346.0,96345.0,0.12340569]
[1740185719588,0.00778948,96346.0,96345.0,0.27909569]
[1740185719828,0.0008508,96346.0,96345.0,0.27909569]
[1740185721780,0.0008508,96346.0,96345.0,0.35799569]
[1740185722026,0.00778948,96346.0,96345.0,0.35799569]
[1740185724218,0.0008508,96346.0,96345.0,0.35799569]
[1740185727351,0.0077969,96346.0,96345.0,0.35799569]
[1740185727551,0.0008508,96346.0,96345.0,0.35799569]
[1740185732329,0.0008508,96346.0,96345.0,0.40539569]
[1740185734279,0.0008508,96346.0,96345.0,0.42482707]
[1740185739503,0.0008508,96346.0,96345.0,0.4280765]
[1740185740669,0.0008508,96346.0,96345.0,0.4280365]
[1740185741481,0.0008508,96346.0,96345.0,0.42478707]
[1740185757535,0.0008508,96346.0,96345.0,0.42803644]
[1740185758912,0.0008508,96346.0,96345.0,0.40860506]
[1740185759186,0.0008508,96346.0,96345.0,0.40535569]
[1740185760475,0.0008508,96346.0,96345.0,0.39935569]
[1740185761331,0.0008508,96346.0,96345.0,0.39235569]
[1740185765211,0.0008508,96346.0,96345.0,0.71375569]
[1740185767086,0.0008508,96346.0,96345.0,0.74609782]
[1740185767239,0.0008508,96346.0,96345.0,0.76063867]
[1740185767583,0.0008508,96346.0,96345.0,0.79183167]
[1740185768212,0.0008508,96346.0,96345.0,0.80263889]
[1740185770508,8e-07,96346.0,96345.0,0.80263889]
[1740185771280,8e-07,96346.0,96345.0,1.34563889]
[1740185773679,8e-07,96346.0,96345.0,1.43872826]
[1740185777656,8e-07,96346.0,96345.0,1.34563889]
[1740185778609,8e-07,96346.0,96345.0,1.33483167]
[1740185780012,8e-07,96346.0,96345.0,1.34574453]
[1740185787760,8e-07,96346.0,96345.0,1.34744573]
[1740185789649,8e-07,96346.0,96345.0,1.37094573]
[1740185797878,8e-07,96346.0,96345.0,1.48975273]
[1740185820553,8e-07,96346.0,96345.0,1.48203273]
[1740185820759,8e-07,96346.0,96345.0,1.48975273]
[1740185824316,8e-07,96346.0,96345.0,1.47883987]
[1740185824544,8e-07,96346.0,96345.0,1.41689902]
[1740185824850,8e-07,96346.0,96345.0,1.40917902]
[1740185825026,8e-07,96346.0,96345.0,1.18799902]
[1740185825373,8e-07,96346.0,96345.0,1.15565689]
[1740185825929,8e-07,96346.0,96345.0,1.14793689]
[1740185826188,8e-07,96346.0,96345.0,1.15565689]
[1740185827708,8e-07,96346.0,96345.0,0.61265689]
[1740185829070,8e-07,96346.0,96345.0,0.60493689]
[1740185829398,8e-07,96346.0,96345.0,0.61265689]
[1740185834022,8e-07,96346.0,96345.0,0.44924689]
[1740185834225,8e-07,96346.0,96345.0,0.45696689]
[1740185834427,0.00697777,96346.0,96345.0,0.61265689]
[1740185834623,8e-07,96346.0,96345.0,0.61265689]
[1740185836080,8e-07,96346.0,96345.0,0.60493689]
[1740185836371,8e-07,96346.0,96345.0,0.61265689]
[1740185865274,8e-07,96346.0,96345.0,0.60493689]
[1740185865472,8e-07,96346.0,96345.0,0.61265689]
[1740185866597,0.00695854,96346.0,96345.0,0.61265689]
[1740185866820,8e-07,96346.0,96345.0,0.61265689]
[1740185868265,8e-07,96346.0,96345.0,0.69585689]
[1740185871087,8e-07,96346.0,96345.0,0.74275689]
[1740185883691,8e-07,96346.0,96345.0,0.77513766]
[1740185886367,8e-07,96346.0,96345.0,0.74275689]
[1740185887509,8e-07,96346.0,96345.0,0.75354828]
[1740185888131,8e-07,96346.0,96345.0,0.74275689]
[1740185913362,8e-07,96346.0,96345.0,0.73503689]
[1740185913623,8e-07,96346.0,96345.0,0.74275689]
[1740185918067,8e-07,96346.0,96345.0,0.77513819]
[1740185918303,8e-07,96346.0,96345.0,0.77929819]
[1740185919547,8e-07,96346.0,96345.0,0.74691689]
[1740185919749,8e-07,96346.0,96345.0,0.70001689]
[1740185919957,8e-07,96346.0,96345.0,0.69229689]
[1740185920153,8e-07,96346.0,96345.0,0.70001689]
[1740185920831,8e-07,96346.0,96345.0,0.61681689]
[1740185921527,8e-07,96346.0,96345.0,0.61265689]
[1740185922100,8e-07,96346.0,96345.0,0.45696689]
[1740185922852,0.00697321,96346.0,96345.0,0.45696689]
[1740185923087,0.00697321,96346.0,96345.0,0.61265689]
[1740185923429,8e-07,96346.0,96345.0,0.61265689]
[1740185927539,8e-07,96346.0,96345.0,0.60493689]
[1740185927748,8e-07,96346.0,96345.0,0.44924689]
[1740185927921,8e-07,96346.0,96345.0,0.45696689]
[1740185928150,0.00697321,96346.0,96345.0,0.45696689]
[1740185928852,8e-07,96346.0,96345.0,0.45696689]
[1740185928986,0.00697321,96346.0,96345.0,0.45696689]
[1740185929197,8e-07,96346.0,96345.0,0.45696689]
[1740185929430,8e-07,96346.0,96345.0,0.61265689]
[1740185962110,8e-07,96346.0,96345.0,0.60493689]
[1740185962289,8e-07,96346.0,96345.0,0.61265689]
[1740185965879,8e-07,96346.0,96345.0,0.69185689]
[1740185968041,8e-07,96346.0,96345.0,0.75825014]
[1740185968244,8e-07,96346.0,96345.0,0.69185689]
[1740185988058,8e-07,96346.0,96345.0,0.72420523]
[1740185988260,8e-07,96346.0,96345.0,0.76950523]
[1740185989645,8e-07,96346.0,96345.0,0.73715689]
[1740185989846,8e-07,96346.0,96345.0,0.76947797]
[1740185990343,8e-07,96346.0,96345.0,0.73715689]
[1740185992480,8e-07,96346.0,96345.0,0.76945789]
[1740185994280,8e-07,96346.0,96345.0,0.73715689]
[1740185999098,8e-07,96346.0,96345.0,0.72943689]
[1740185999307,8e-07,96346.0,96345.0,0.73715689]
[1740186002528,8e-07,96346.0,96345.0,0.69185689]
[1740186003831,8e-07,96346.0,96345.0,0.73835689]
[1740186007569,8e-07,96346.0,96345.0,0.73063689]
[1740186007775,8e-07,96346.0,96345.0,0.73835689]
[1740186007948,8e-07,96346.0,96345.0,0.73063689]
[1740186008153,8e-07,96346.0,96345.0,0.73835689]
[1740186011420,8e-07,96346.0,96345.0,0.68413689]
[1740186011616,8e-07,96346.0,96345.0,0.69185689]
[1740186026166,8e-07,96346.0,96345.0,0.73715689]
[1740186032758,8e-07,96346.0,96345.0,0.76951491]
[1740186035523,8e-07,96346.0,96345.0,1.31251491]
[1740186037216,8e-07,96346.0,96345.0,1.32705576]
[1740186039131,8e-07,96346.0,96345.0,1.31933576]
[1740186039325,8e-07,96346.0,96345.0,1.32705576]
[1740186040216,8e-07,96346.0,96345.0,1.33499735]
[1740186041791,8e-07,96346.0,96345.0,1.33915635]
[1740186044784,8e-07,96346.0,96345.0,1.33143635]
[1740186045009,8e-07,96346.0,96345.0,1.33915635]
[1740186063584,8e-07,96346.0,96345.0,1.48915635]
[1740186080377,8e-07,96346.0,96345.0,1.50915635]
[1740186084427,8e-07,96346.0,96345.0,1.61865635]
[1740186084855,3e-07,96369.0,96368.0,0.155653]
[1740186085061,3e-07,96369.0,96368.0,1.21353954]
[1740186085218,3e-07,96369.0,96368.0,1.24589756]
[1740186085583,3e-07,96369.0,96368.0,1.27708356]
[1740186086189,4.347e-05,96369.0,96368.0,1.27708356]
[1740186086681,4.347e-05,96369.0,96368.0,1.2875655]
[1740186087631,4.347e-05,96369.0,96368.0,1.27708356]
[1740186088829,4.347e-05,96369.0,96368.0,1.12269869]
[1740186089171,4.347e-05,96369.0,96368.0,0.57969869]
[1740186089513,4.347e-05,96369.0,96368.0,0.58741869]
[1740186090102,4.347e-05,96369.0,96368.0,0.57969869]
[1740186090312,4.347e-05,96369.0,96368.0,0.58741869]
[1740186092060,4.347e-05,96369.0,96368.0,0.60867165]
[1740186093906,4.347e-05,96369.0,96368.0,0.60095165]
[1740186094329,4.347e-05,96369.0,96368.0,0.60867165]
[1740186096879,4.347e-05,96369.0,96368.0,0.60095165]
[1740186097090,4.347e-05,96369.0,96368.0,0.60867165]
[1740186097788,4.347e-05,96369.0,96368.0,0.61037245]
[1740186098107,0.00089387,96369.0,96368.0,0.61037245]
[1740186100239,0.00279387,96369.0,96368.0,0.44699945]
[1740186100443,0.15844487,96369.0,96368.0,0.0017008]
[1740186100644,0.20384487,96369.0,96368.0,0.0094208]
[1740186100837,0.2128174,96369.0,96368.0,0.0094208]
[1740186101320,0.24904416,96369.0,96368.0,0.0017008]
[1740186101724,3.38477046,96369.0,96368.0,0.0017008]
[1740186102573,2.5346677,96369.0,96368.0,0.0017008]
[1740186102808,1.55006329,96369.0,96368.0,0.0017008]
[1740186103011,1.24616329,96369.0,96368.0,0.0017008]
[1740186103221,1.22966329,96369.0,96368.0,0.0017008]
[1740186103435,1.18946329,96369.0,96368.0,0.0017008]
[1740186103613,0.40466329,96369.0,96368.0,0.0017008]
[1740186103956,0.38892582,96369.0,96368.0,0.0017008]
[1740186106409,0.3726677,96369.0,96368.0,0.0017008]
[1740186106909,0.2151167,96369.0,96368.0,0.0017008]
[1740186107542,0.0197167,96369.0,96368.0,0.25999949]
[1740186107758,0.0197167,96369.0,96368.0,0.10434649]
[1740186107905,0.01074417,96369.0,96368.0,0.10434649]
[1740186108513,0.01964132,96369.0,96368.0,0.10434649]
[1740186109466,0.01074417,96369.0,96368.0,0.10434649]
[1740186110336,0.00089387,96369.0,96368.0,0.10434649]
[1740186111024,0.00089387,96369.0,96368.0,0.25999949]
[1740186112906,0.00089387,96369.0,96368.0,0.58139949]
[1740186115611,0.00089387,96369.0,96368.0,0.66179949]
[1740186115808,0.00089387,96369.0,96368.0,0.70759949]
[1740186118116,0.00089387,96369.0,96368.0,0.71459949]
[1740186118850,0.00089387,96369.0,96368.0,1.25759949]
[1740186120882,0.00089387,96369.0,96368.0,0.71459949]
[1740186123509,0.00089387,96369.0,96368.0,0.71875849]
[1740186124720,0.00089387,96369.0,96368.0,1.26175849]
[1740186127615,0.00089387,96369.0,96368.0,1.26947849]
[1740186130646,0.00089387,96369.0,96368.0,0.72647849]
[1740186136590,0.00089387,96369.0,96368.0,1.26947849]
[1740186141817,0.00089387,96369.0,96368.0,1.26175849]
[1740186141975,0.00089387,96369.0,96368.0,1.26947849]
[1740186145183,0.00089387,96369.0,96368.0,1.21595849]
[1740186145390,0.00089387,96369.0,96368.0,1.13555849]
[1740186145640,0.00089387,96369.0,96368.0,1.14327849]
[1740186146597,0.00089387,96369.0,96368.0,0.98762549]
[1740186146815,0.00089387,96369.0,96368.0,0.44046649]
[1740186147030,0.00989683,96369.0,96368.0,0.44046649]
[1740186147275,0.00089387,96369.0,96368.0,0.59611949]
[1740186147612,0.00089387,96369.0,96368.0,0.58911949]
[1740186147827,0.00089387,96369.0,96368.0,0.59611949]
[1740186149127,0.00089387,96369.0,96368.0,0.58839949]
[1740186149335,0.00089387,96369.0,96368.0,0.59611949]
[1740186150164,0.00089387,96369.0,96368.0,0.58839949]
[1740186150376,0.00089387,96369.0,96368.0,0.59611949]
[1740186151505,0.00089387,96369.0,96368.0,0.43274649]
[1740186151707,0.15654487,96369.0,96368.0,0.44046649]
[1740186152167,0.3155342,96369.0,96368.0,0.3378208]
[1740186152959,0.39516924,96369.0,96368.0,0.3378208]
[1740186153529,0.3155342,96369.0,96368.0,0.3378208]
[1740186153749,0.3155342,96369.0,96368.0,0.3308208]
[1740186154195,0.3155342,96369.0,96368.0,0.3378208]
[1740186154346,0.3155342,96369.0,96368.0,0.3308208]
[1740186154688,0.3155342,96369.0,96368.0,0.3338208]
[1740186154862,0.3253778,96369.0,96368.0,0.3338208]
[1740186155497,0.33076461,96369.0,96368.0,0.3261008]
[1740186155713,0.33076461,96369.0,96368.0,0.3338208]
[1740186155892,0.33076461,96369.0,96368.0,0.0124208]
[1740186160122,0.32092101,96369.0,96368.0,0.0124208]
[1740186161683,0.33075686,96369.0,96368.0,0.0124208]
[1740186162503,0.39477187,96369.0,96368.0,0.0047008]
[1740186163862,0.39477187,96369.0,96368.0,0.0017008]
[1740186164640,0.39477187,96369.0,96368.0,0.0047008]
[1740186164795,0.39477187,96369.0,96368.0,0.0017008]
[1740186165349,0.39477187,96369.0,96368.0,0.0027008]
[1740186166297,0.41050079,96369.0,96368.0,0.0027008]
[1740186166974,3.36081202,96369.0,96368.0,0.0027008]
[1740186167389,3.38637374,96369.0,96368.0,0.0027008]
[1740186170779,3.40263176,96369.0,96368.0,0.0027008]
[1740186175610,3.38637374,96369.0,96368.0,0.0027008]
[1740186178915,3.32235873,96369.0,96368.0,0.0027008]
[1740186180126,3.33861839,96369.0,96368.0,0.0027008]
[1740186180355,3.3228881,96369.0,96368.0,0.0027008]
[1740186182152,3.31305667,96369.0,96368.0,0.0027008]
[1740186186246,2.61462101,96369.0,96368.0,0.0027008]
[1740186186711,2.53512101,96369.0,96368.0,0.0027008]
[1740186186934,1.18782101,96369.0,96368.0,0.0027008]
[1740186187136,1.14882101,96369.0,96368.0,0.0027008]
[1740186187338,1.2514667,96369.0,96368.0,0.0027008]
[1740186187775,0.99732101,96369.0,96368.0,0.0027008]
[1740186188397,0.32092101,96369.0,96368.0,0.0027008]
[1740186188574,0.95402101,96369.0,96368.0,0.0027008]
[1740186188771,0.94612101,96369.0,96368.0,0.0027008]
[1740186189615,0.92042101,96369.0,96368.0,0.0027008]
[1740186189815,0.16527001,96369.0,96368.0,0.0027008]
[1740186190909,0.181529,96369.0,96368.0,0.0027008]
[1740186192608,0.33718,96369.0,96368.0,0.0027008]
[1740186193013,0.181529,96369.0,96368.0,0.0027008]
[1740186193217,0.33718,96369.0,96368.0,0.0027008]
[1740186193427,0.391651,96369.0,96368.0,0.0027008]
[1740186198107,0.33718,96369.0,96368.0,0.0027008]
[1740186198707,0.181529,96369.0,96368.0,0.0027008]
[1740186199117,0.33718,96369.0,96368.0,0.0027008]
[1740186199269,0.32092101,96369.0,96368.0,0.0027008]
[1740186202305,0.33718019,96369.0,96368.0,0.0027008]
[1740186205370,0.33718019,96369.0,96368.0,0.0104208]
[1740186206670,0.43315631,96369.0,96368.0,0.0104208]
[1740186212259,0.41689713,96369.0,96368.0,0.0104208]
[1740186215420,0.43315633,96369.0,96368.0,0.0104208]
[1740186216057,0.33718021,96369.0,96368.0,0.0104208]
[1740186216258,0.32092101,96369.0,96368.0,0.0104208]
[1740186219231,0.33718009,96369.0,96368.0,0.0104208]
[1740186221875,0.18152909,96369.0,96368.0,0.0866208]
[1740186223333,0.17253976,96369.0,96368.0,0.0866208]
[1740186223510,0.18140948,96369.0,96368.0,0.2422738]
[1740186223741,0.17602267,96369.0,96368.0,0.34491949]
[1740186224143,0.17602267,96369.0,96368.0,0.0779008]
[1740186224274,0.34927594,96369.0,96368.0,0.0856208]
[1740186224479,0.33167367,96369.0,96368.0,0.0866208]
[1740186226523,0.31541459,96369.0,96368.0,0.0866208]
[1740186226762,0.32079869,96369.0,96368.0,0.0866208]
[1740186229738,0.32079869,96369.0,96368.0,0.0789008]
[1740186229945,0.32079869,96369.0,96368.0,0.0866208]
[1740186233384,0.35330325,96369.0,96368.0,0.0866208]
[1740186233788,0.32079869,96369.0,96368.0,0.0866208]
[1740186241745,0.32079869,96369.0,96368.0,0.0789008]
[1740186241945,0.32079869,96369.0,96368.0,0.0866208]
[1740186244523,0.01514769,96369.0,96368.0,0.39111949]
[1740186244670,0.00089387,96369.0,96368.0,0.39111949]
[1740186245451,0.00089387,96369.0,96368.0,0.39011949]
[1740186245683,0.00089387,96369.0,96368.0,0.39611949]
[1740186246166,0.00089387,96369.0,96368.0,0.71151949]
[1740186246356,0.00089387,96369.0,96368.0,0.71851949]
[1740186246568,0.00089387,96369.0,96368.0,0.71151949]
[1740186247889,0.00089387,96369.0,96368.0,0.71851949]
[1740186248972,0.00089387,96369.0,96368.0,0.73958308]
[1740186251085,0.00089387,96369.0,96368.0,0.73258308]
[1740186251755,0.00089387,96369.0,96368.0,0.73958308]
[1740186254026,0.00089387,96369.0,96368.0,0.57621008]
[1740186254235,0.15654487,96369.0,96368.0,0.53001008]
[1740186254444,0.33776406,96369.0,96368.0,0.0164208]
[1740186254648,0.34673174,96369.0,96368.0,0.0164208]
[1740186255080,0.34673174,96369.0,96368.0,0.0094208]
[1740186255271,0.34673174,96369.0,96368.0,0.0087008]
[1740186255696,0.34673174,96369.0,96368.0,0.0017008]
[1740186255895,0.36299007,96369.0,96368.0,0.0017008]
[1740186256128,0.36299007,96369.0,96368.0,0.0077008]
[1740186256550,0.3683764,96369.0,96368.0,0.0077008]
[1740186256959,3.3442524,96369.0,96368.0,0.0077008]
[1740186257100,3.32799407,96369.0,96368.0,0.0077008]
[1740186257306,3.32799407,96369.0,96368.0,0.0017008]
[1740186257515,3.32799407,96369.0,96368.0,0.0047008]
[1740186257771,3.32799407,96369.0,96368.0,0.0017008]
[1740186258835,3.32899407,96369.0,96368.0,0.0017008]
[1740186259372,3.32799407,96369.0,96368.0,0.0017008]
[1740186259771,3.34425482,96369.0,96368.0,0.0017008]
[1740186261273,3.34525482,96369.0,96368.0,0.0017008]
[1740186261441,3.34425482,96369.0,96368.0,0.0017008]
[1740186261853,3.34525482,96369.0,96368.0,0.0017008]
[1740186262558,3.34425482,96369.0,96368.0,0.0017008]
[1740186262955,3.34625482,96369.0,96368.0,0.0017008]
[1740186263166,3.34425482,96369.0,96368.0,0.0017008]
[1740186264403,3.35879567,96369.0,96368.0,0.0017008]
[1740186264583,3.36079567,96369.0,96368.0,0.0017008]
[1740186264779,3.35879567,96369.0,96368.0,0.0017008]
[1740186265003,0.305688,96346.0,96345.0,0.02399133]
[1740186265209,0.305688,96346.0,96345.0,0.01485177]
[1740186265411,0.305688,96346.0,96328.0,0.0017016]
[1740186265412,0.02,96334.0,96328.0,0.0017016]
[1740186265612,0.305737,96316.0,96315.0,0.0758]
[1740186265785,0.3363107,96316.0,96315.0,0.0758]
[1740186265985,0.305738,96315.0,96314.0,0.00772]
[1740186266639,0.32492571,96315.0,96314.0,0.00772]
[1740186266796,0.32492571,96315.0,96314.0,0.00779598]
[1740186266999,0.40200525,96315.0,96314.0,0.00779598]
[1740186267619,0.32492571,96315.0,96314.0,0.00779598]
[1740186268258,0.32492571,96315.0,96314.0,0.00879598]
[1740186270181,0.34119376,96315.0,96314.0,0.00879598]
[1740186272004,0.34119376,96315.0,96314.0,0.01049718]
[1740186276277,0.32492571,96315.0,96314.0,0.01049718]
[1740186276537,0.40279388,96315.0,96314.0,0.01049718]
[1740186277639,0.40279388,96315.0,96314.0,0.00277718]
[1740186279196,0.40279388,96315.0,96314.0,0.00177718]
[1740186279532,0.40279388,96315.0,96314.0,0.00277718]
[1740186280631,3.37866988,96315.0,96314.0,0.00277718]
[1740186281270,0.59952571,96315.0,96314.0,0.00277718]
[1740186281460,0.47882571,96315.0,96314.0,0.00277718]
[1740186281636,0.46742571,96315.0,96314.0,0.00277718]
[1740186282056,0.32492571,96315.0,96314.0,0.00277718]
[1740186283011,0.01918771,96315.0,96314.0,0.00277718]
[1740186283151,0.01918771,96315.0,96314.0,0.12537718]
[1740186283349,0.16918771,96315.0,96314.0,0.12537718]
[1740186283566,0.01918771,96315.0,96314.0,0.12537718]
[1740186284584,0.04036253,96315.0,96314.0,0.12537718]
[1740186284802,0.01918771,96315.0,96314.0,0.12437718]
[1740186285249,0.01918771,96315.0,96314.0,0.12837718]
[1740186285809,0.01918771,96315.0,96314.0,0.23102287]
[1740186286010,0.0088418,96315.0,96314.0,0.38676287]
[1740186286212,0.000851,96328.0,96320.0,0.0753]
[1740186286437,0.0528968,96327.0,96320.0,0.0753]
[1740186286655,0.15,96323.0,96320.0,0.0753]
[1740186287221,0.0086892,96322.0,96320.0,0.0753]
[1740186288092,0.0086892,96322.0,96320.0,0.0783]
[1740186288289,0.155729,96321.0,96320.0,0.0753]
[1740186288462,0.0086892,96322.0,96320.0,0.0753]
[1740186288667,0.305726,96323.0,96320.0,0.0803]
[1740186288897,0.0086892,96321.0,96320.0,0.0803]
[1740186289157,0.15,96323.0,96320.0,0.0803]
[1740186289362,0.0086892,96321.0,96320.0,0.0803]
[1740186289566,0.1604501,96327.0,96320.0,0.0803]
[1740186289680,0.0086892,96321.0,96320.0,0.0803]
[1740186289887,0.15,96325.0,96320.0,0.0803]
[1740186290083,0.0086892,96324.0,96320.0,0.0803]
[1740186290290,0.15,96323.0,96320.0,0.0803]
[1740186290491,0.155729,96321.0,96320.0,0.0803]
[1740186290696,0.1644182,96321.0,96320.0,0.0803]
[1740186290938,0.1644182,96321.0,96320.0,0.0753]
[1740186291317,0.1644182,96321.0,96320.0,0.0803]
[1740186292805,0.1586892,96321.0,96320.0,0.18294569]
[1740186293434,0.1586892,96321.0,96320.0,0.20228009]
[1740186293849,0.3144182,96321.0,96320.0,0.20228009]
[1740186294042,0.1586892,96321.0,96320.0,0.20228009]
[1740186296600,0.1586892,96321.0,96320.0,0.21000009]
[1740186296966,0.1586892,96321.0,96320.0,0.21170129]
[1740186298192,0.3144182,96321.0,96320.0,0.21170129]
[1740186299532,0.3144182,96321.0,96320.0,0.19236689]
[1740186299945,0.1586892,96321.0,96320.0,0.19236689]
[1740186301153,0.3144182,96321.0,96320.0,0.19236689]
[1740186302766,0.1586892,96321.0,96320.0,0.19236689]
[1740186303412,0.0086892,96321.0,96320.0,0.19236689]
[1740186303819,0.0086892,96321.0,96320.0,0.34809689]
[1740186304068,0.155724,96324.0,96320.0,0.19236689]
[1740186304281,0.155724,96324.0,96321.0,0.10264569]
[1740186304676,0.15,96326.0,96321.0,0.25837269]
[1740186304922,0.15,96326.0,96322.0,0.0778]
[1740186305059,0.15,96326.0,96325.0,0.0778]
[1740186305271,0.15,96326.0,96325.0,0.18044569]
[1740186305471,0.01033921,96327.0,96325.0,0.18044569]
[1740186305472,0.01033921,96327.0,96325.0,0.33616769]
[1740186305674,0.000851,96328.0,96326.0,0.10264569]
[1740186306952,0.000851,96328.0,96327.0,0.155719]
[1740186307076,0.000851,96328.0,96327.0,0.25836469]
[1740186307265,0.000851,96328.0,96327.0,0.38396469]
[1740186307469,0.01150786,96328.0,96327.0,0.38396469]
[1740186308302,0.01150786,96328.0,96327.0,0.38896469]
[1740186308846,0.01150786,96328.0,96327.0,0.39221488]
[1740186309084,0.01150786,96328.0,96327.0,0.38721488]
[1740186310425,0.01250786,96328.0,96327.0,0.39321488]
[1740186310626,0.01250786,96328.0,96327.0,0.38996469]
[1740186313334,0.02121169,96328.0,96327.0,0.38996469]
[1740186313517,0.01250786,96328.0,96327.0,0.38996469]
[1740186313936,0.01250786,96328.0,96327.0,0.41093018]
[1740186314111,0.16822486,96328.0,96327.0,0.11636569]
[1740186314475,0.17692869,96328.0,96327.0,0.11636569]
[1740186315285,0.17692869,96328.0,96327.0,0.10864569]
[1740186315486,0.17692869,96328.0,96327.0,0.11636569]
[1740186318578,0.38614506,96328.0,96327.0,0.01372]
[1740186319397,0.38614506,96328.0,96327.0,0.006]
[1740186319748,3.36202106,96328.0,96327.0,0.006]
[1740186320340,3.37828688,96328.0,96327.0,0.006]
[1740186320540,0.40241088,96328.0,96327.0,0.006]
[1740186321188,0.63329451,96328.0,96327.0,0.006]
[1740186322562,0.57839451,96328.0,96327.0,0.006]
[1740186323315,0.18547751,96328.0,96327.0,0.006]
[1740186323672,0.18547751,96328.0,96327.0,0.18414569]
[1740186323801,0.16050786,96328.0,96327.0,0.18414569]
[1740186324001,0.1692238,96328.0,96327.0,0.18414569]
[1740186324921,0.1682238,96328.0,96327.0,0.17814569]
[1740186325127,0.1692238,96328.0,96327.0,0.18414569]
[1740186325321,0.1692238,96328.0,96327.0,0.17814569]
[1740186325530,0.1702238,96328.0,96327.0,0.18414569]
[1740186330702,0.1702238,96328.0,96327.0,0.18584689]
[1740186330886,0.1710744,96328.0,96327.0,0.18584689]
[1740186331081,0.16235846,96328.0,96327.0,0.18584689]
[1740186331509,0.1710689,96328.0,96327.0,0.18584689]
[1740186337429,0.1710689,96328.0,96327.0,0.19356689]
[1740186337630,0.16235846,96328.0,96327.0,0.19356689]
[1740186337825,0.1710689,96328.0,96327.0,0.19356689]
[1740186338036,0.1710689,96328.0,96327.0,0.41567914]
[1740186338037,0.0210689,96328.0,96327.0,0.41567914]
[1740186338241,0.01156104,96328.0,96327.0,0.71998589]
[1740186338805,0.00956104,96328.0,96327.0,0.71398589]
[1740186339275,0.00956104,96328.0,96327.0,0.71998589]
[1740186339475,0.00956104,96328.0,96327.0,0.71398589]
[1740186339987,0.00956104,96328.0,96327.0,0.72098589]
[1740186345572,0.00956104,96328.0,96327.0,0.71398589]
[1740186345995,0.0162635,96366.0,96327.0,0.71398589]
[1740186345996,0.0162635,96366.0,96360.0,0.155666]
[1740186346229,0.0162635,96366.0,96327.0,0.44046689]
[1740186346230,0.0162635,96366.0,96362.0,0.0769]
[1740186346443,0.00732273,96365.0,96362.0,0.0769]
[1740186346818,0.00732273,96365.0,96363.0,0.15566]
[1740186347010,0.00732273,96365.0,96364.0,0.155659]
[1740186347188,0.0073659,96365.0,96364.0,0.10264569]
[1740186347390,4.317e-05,96365.0,96364.0,0.25830469]
[1740186349072,4.317e-05,96365.0,96364.0,0.26330469]
[1740186354635,0.00089377,96365.0,96364.0,0.26330469]
[1740186354761,0.00089377,96365.0,96364.0,0.28444206]
[1740186357335,0.00089377,96365.0,96364.0,0.28716206]
[1740186357635,0.00089377,96365.0,96364.0,0.29416206]
[1740186357838,0.15655177,96365.0,96364.0,0.02813737]
[1740186357992,0.16398347,96365.0,96364.0,0.03585737]
[1740186359097,0.00832547,96365.0,96364.0,0.03285737]
[1740186360306,0.00832547,96365.0,96364.0,0.02885737]
[1740186360503,0.00832547,96365.0,96364.0,0.00772]